[Event "Titled Tuesday Blitz April 25 Early 2023"]
[White "Khamdamova, Afruza"]
[Black "Donchenko, Alexander"]
[WhiteFideId "14210444"]
[BlackFideId "24603295"]
[WhiteElo "2210"]
[BlackElo "2542"]
[Result "0-1"]
[Round "01"]
[TimeControl "180+2"]
[Date "2023.04.25"]
[WhiteClock "0:00:02"]
[BlackClock "0:00:29"]

1. e4 {[%clk 0:03:00]}  c6 {[%clk 0:03:00]} 2. d4 {[%clk 0:03:00]}  d5 {[%clk 0:03:00]} 3. Nc3 {[%clk 0:02:59]}  dxe4 {[%clk 0:03:01]} 4. Nxe4 {[%clk 0:03:00]}  Nf6 {[%clk 0:03:02]} 5. Qd3 {[%clk 0:02:58]}  Nbd7 {[%clk 0:02:59]} 6. Nf3 {[%clk 0:02:57]}  Nxe4 {[%clk 0:02:59]} 7. Qxe4 {[%clk 0:02:57]}  Nf6 {[%clk 0:03:00]} 8. Qd3 {[%clk 0:02:58]}  g6 {[%clk 0:02:58]} 9. Be2 {[%clk 0:02:57]}  Bf5 {[%clk 0:02:58]} 10. Qb3 {[%clk 0:02:57]}  Qb6 {[%clk 0:02:58]} 11. c3 {[%clk 0:02:56]}  Bg7 {[%clk 0:02:58]} 12. O-O {[%clk 0:02:56]}  O-O {[%clk 0:02:58]} 13. Bf4 {[%clk 0:02:51]}  Be6 {[%clk 0:02:55]} 14. Qc2 {[%clk 0:02:49]}  Bf5 {[%clk 0:02:55]} 15. Qb3 {[%clk 0:02:49]}  Be6 {[%clk 0:02:54]} 16. Qc2 {[%clk 0:02:49]}  a5 {[%clk 0:02:54]} 17. c4 {[%clk 0:02:26]}  a4 {[%clk 0:02:44]} 18. Rad1 {[%clk 0:02:22]}  Bf5 {[%clk 0:02:43]} 19. Qc1 {[%clk 0:02:22]}  Rfd8 {[%clk 0:02:42]} 20. Rfe1 {[%clk 0:02:15]}  Bg4 {[%clk 0:02:35]} 21. Be5 {[%clk 0:02:00]}  Ne4 {[%clk 0:02:10]} 22. Bxg7 {[%clk 0:01:56]}  Kxg7 {[%clk 0:02:11]} 23. Qf4 {[%clk 0:01:52]}  Nf6 {[%clk 0:02:06]} 24. Rd2 {[%clk 0:01:47]}  Bxf3 {[%clk 0:01:57]} 25. Bxf3 {[%clk 0:01:46]}  Rd7 {[%clk 0:01:56]} 26. Red1 {[%clk 0:01:19]}  Rad8 {[%clk 0:01:55]} 27. g3 {[%clk 0:01:17]}  Qb4 {[%clk 0:01:53]} 28. Be2 {[%clk 0:01:12]}  e6 {[%clk 0:01:40]} 29. a3 {[%clk 0:01:10]}  Qb6 {[%clk 0:01:37]} 30. Qe5 {[%clk 0:01:07]}  Qc7 {[%clk 0:01:36]} 31. Qxc7 {[%clk 0:00:59]}  Rxc7 {[%clk 0:01:37]} 32. Rd3 {[%clk 0:00:55]}  Ne4 {[%clk 0:01:33]} 33. f3 {[%clk 0:00:50]}  Nd6 {[%clk 0:01:33]} 34. Rc1 {[%clk 0:00:45]}  Rcd7 {[%clk 0:01:29]} 35. g4 {[%clk 0:00:44]}  g5 {[%clk 0:01:22]} 36. Kf2 {[%clk 0:00:32]}  Nc8 {[%clk 0:01:22]} 37. Ke3 {[%clk 0:00:32]}  Nb6 {[%clk 0:01:22]} 38. Rcc3 {[%clk 0:00:29]}  Kg6 {[%clk 0:01:18]} 39. Bd1 {[%clk 0:00:23]}  e5 {[%clk 0:01:05]} 40. Bc2 {[%clk 0:00:11]}  exd4+ {[%clk 0:01:00]} 41. Rxd4+ {[%clk 0:00:11]}  Kg7 {[%clk 0:01:01]} 42. Rxd7 {[%clk 0:00:12]}  Nxd7 {[%clk 0:01:02]} 43. Rd3 {[%clk 0:00:11]}  Re8+ {[%clk 0:01:02]} 44. Kd2 {[%clk 0:00:11]}  Nc5 {[%clk 0:01:02]} 45. Re3 {[%clk 0:00:11]}  Rd8+ {[%clk 0:01:01]} 46. Kc3 {[%clk 0:00:10]}  Kf6 {[%clk 0:01:01]} 47. Kb4 {[%clk 0:00:09]}  b6 {[%clk 0:01:01]} 48. Bxa4 {[%clk 0:00:10]}  Rd2 {[%clk 0:01:00]} 49. Kc3 {[%clk 0:00:08]}  Rxh2 {[%clk 0:00:58]} 50. Bc2 {[%clk 0:00:08]}  h5 {[%clk 0:00:57]} 51. gxh5 {[%clk 0:00:08]}  Rxh5 {[%clk 0:00:58]} 52. b4 {[%clk 0:00:08]}  Nd7 {[%clk 0:00:58]} 53. a4 {[%clk 0:00:09]}  Rh4 {[%clk 0:00:57]} 54. a5 {[%clk 0:00:09]}  bxa5 {[%clk 0:00:57]} 55. bxa5 {[%clk 0:00:09]}  Ne5 {[%clk 0:00:58]} 56. Bb3 {[%clk 0:00:08]}  c5 {[%clk 0:00:56]} 57. a6 {[%clk 0:00:08]}  Rh8 {[%clk 0:00:56]} 58. Re1 {[%clk 0:00:08]}  Ra8 {[%clk 0:00:57]} 59. Ra1 {[%clk 0:00:08]}  Ke6 {[%clk 0:00:57]} 60. Bd1 {[%clk 0:00:08]}  Kd6 {[%clk 0:00:57]} 61. Ra5 {[%clk 0:00:04]}  Nc6 {[%clk 0:00:56]} 62. Ra2 {[%clk 0:00:03]}  Kc7 {[%clk 0:00:56]} 63. Rg2 {[%clk 0:00:01]}  f6 {[%clk 0:00:54]} 64. Rh2 {[%clk 0:00:02]}  Rxa6 {[%clk 0:00:53]} 65. Rh7+ {[%clk 0:00:02]}  Kd6 {[%clk 0:00:54]} 66. Rf7 {[%clk 0:00:02]}  Ke6 {[%clk 0:00:54]} 67. Rc7 {[%clk 0:00:02]}  Kf5 {[%clk 0:00:48]} 68. Bc2+ {[%clk 0:00:02]}  Kf4 {[%clk 0:00:49]} 69. Be4 {[%clk 0:00:03]}  Ne5 {[%clk 0:00:46]} 70. Rxc5 {[%clk 0:00:03]}  Nxf3 {[%clk 0:00:45]} 71. Bb7 {[%clk 0:00:03]}  Ra1 {[%clk 0:00:41]} 72. Bxf3 {[%clk 0:00:02]}  Kxf3 {[%clk 0:00:42]} 73. Rf5+ {[%clk 0:00:02]}  Ke4 {[%clk 0:00:43]} 74. Rxf6 {[%clk 0:00:02]}  g4 {[%clk 0:00:43]} 75. Rg6 {[%clk 0:00:03]}  Kf3 {[%clk 0:00:41]} 76. Kd4 {[%clk 0:00:03]}  g3 {[%clk 0:00:40]} 77. c5 {[%clk 0:00:04]}  g2 {[%clk 0:00:39]} 78. Kd5 {[%clk 0:00:04]}  Ra4 {[%clk 0:00:39]} 79. c6 {[%clk 0:00:04]}  Rg4 {[%clk 0:00:38]} 80. Rf6+ {[%clk 0:00:04]}  Kg3 {[%clk 0:00:38]} 81. c7 {[%clk 0:00:04]}  g1=Q {[%clk 0:00:38]} 82. c8=Q {[%clk 0:00:04]}  Qd4+ {[%clk 0:00:33]} 83. Ke6 {[%clk 0:00:04]}  Qe4+ {[%clk 0:00:33]} 84. Kd7 {[%clk 0:00:02]}  Rg7+ {[%clk 0:00:31]} 85. Kd6 {[%clk 0:00:02]}  Qe7+ {[%clk 0:00:29]} 86. Kc6 {[%clk 0:00:02]}  Qxf6+ {[%clk 0:00:29]} 0-1


[Site "https://www.chess.com"]

[Event "Titled Tuesday Blitz April 25 Early 2023"]
[White "Galchenko, Matvey"]
[Black "Estrada Nieto, Julian"]
[WhiteFideId "24175480"]
[BlackFideId "5101018"]
[WhiteElo "2423"]
[BlackElo "2161"]
[Result "1-0"]
[Round "01"]
[TimeControl "180+2"]
[Date "2023.04.25"]
[WhiteClock "0:01:00"]
[BlackClock "0:00:09"]

1. f4 {[%clk 0:02:52]}  d5 {[%clk 0:02:58]} 2. Nf3 {[%clk 0:02:52]}  g6 {[%clk 0:02:58]} 3. g3 {[%clk 0:02:53]}  Bg7 {[%clk 0:02:58]} 4. Bg2 {[%clk 0:02:53]}  Nf6 {[%clk 0:02:59]} 5. O-O {[%clk 0:02:54]}  O-O {[%clk 0:02:59]} 6. d3 {[%clk 0:02:55]}  c5 {[%clk 0:02:59]} 7. Nc3 {[%clk 0:02:55]}  d4 {[%clk 0:02:53]} 8. Na4 {[%clk 0:02:55]}  Nbd7 {[%clk 0:02:32]} 9. c4 {[%clk 0:02:55]}  Rb8 {[%clk 0:02:29]} 10. a3 {[%clk 0:02:53]}  a6 {[%clk 0:02:24]} 11. b4 {[%clk 0:02:53]}  b5 {[%clk 0:02:11]} 12. cxb5 {[%clk 0:02:43]}  axb5 {[%clk 0:02:09]} 13. Nxc5 {[%clk 0:02:42]}  Nxc5 {[%clk 0:02:09]} 14. bxc5 {[%clk 0:02:43]}  Nd5 {[%clk 0:01:59]} 15. Bd2 {[%clk 0:02:32]}  Bg4 {[%clk 0:01:44]} 16. Qb3 {[%clk 0:02:08]}  Nc3 {[%clk 0:01:30]} 17. e4 {[%clk 0:01:53]}  Qc7 {[%clk 0:01:17]} 18. Qb4 {[%clk 0:01:44]}  Rfc8 {[%clk 0:01:10]} 19. Bxc3 {[%clk 0:01:37]}  dxc3 {[%clk 0:01:10]} 20. d4 {[%clk 0:01:37]}  Rd8 {[%clk 0:00:55]} 21. e5 {[%clk 0:01:31]}  Qd7 {[%clk 0:00:43]} 22. Qxc3 {[%clk 0:01:16]}  Bxf3 {[%clk 0:00:39]} 23. Bxf3 {[%clk 0:01:16]}  Qxd4+ {[%clk 0:00:39]} 24. Qxd4 {[%clk 0:01:17]}  Rxd4 {[%clk 0:00:39]} 25. c6 {[%clk 0:01:13]}  Rc4 {[%clk 0:00:36]} 26. Rac1 {[%clk 0:01:13]}  e6 {[%clk 0:00:35]} 27. Rxc4 {[%clk 0:00:59]}  bxc4 {[%clk 0:00:34]} 28. Rc1 {[%clk 0:01:00]}  Bf8 {[%clk 0:00:28]} 29. Rxc4 {[%clk 0:00:59]}  Bxa3 {[%clk 0:00:16]} 30. c7 {[%clk 0:00:59]}  Rb1+ {[%clk 0:00:09]} 31. Kg2 {[%clk 0:01:00]}  Rb2+ {[%clk 0:00:09]} 32. Kh3 {[%clk 0:01:00]} 1-0


[Site "https://www.chess.com"]

[Event "Titled Tuesday Blitz April 25 Early 2023"]
[White "Heinemann, Josefine"]
[Black "Bacrot, Etienne"]
[WhiteFideId "12900460"]
[BlackFideId "605506"]
[WhiteElo "2342"]
[BlackElo "2663"]
[Result "0-1"]
[Round "01"]
[TimeControl "180+2"]
[Date "2023.04.25"]
[WhiteClock "0:00:08"]
[BlackClock "0:00:33"]

1. e4 {[%clk 0:03:00]}  c5 {[%clk 0:02:19]} 2. Nf3 {[%clk 0:02:55]}  d6 {[%clk 0:02:19]} 3. Bb5+ {[%clk 0:02:53]}  Bd7 {[%clk 0:02:18]} 4. Bxd7+ {[%clk 0:02:52]}  Qxd7 {[%clk 0:02:18]} 5. c4 {[%clk 0:02:48]}  Nc6 {[%clk 0:02:19]} 6. O-O {[%clk 0:02:46]}  g6 {[%clk 0:02:18]} 7. d4 {[%clk 0:02:45]}  cxd4 {[%clk 0:02:19]} 8. Nxd4 {[%clk 0:02:46]}  Bg7 {[%clk 0:02:19]} 9. Be3 {[%clk 0:02:42]}  Nf6 {[%clk 0:02:19]} 10. f3 {[%clk 0:02:36]}  O-O {[%clk 0:02:10]} 11. Nc3 {[%clk 0:02:35]}  Rac8 {[%clk 0:02:10]} 12. b3 {[%clk 0:02:21]}  Rfd8 {[%clk 0:02:06]} 13. Qd2 {[%clk 0:02:09]}  Qc7 {[%clk 0:02:03]} 14. Rac1 {[%clk 0:02:07]}  Qb8 {[%clk 0:02:03]} 15. Rfd1 {[%clk 0:02:03]}  e6 {[%clk 0:01:59]} 16. Ndb5 {[%clk 0:01:55]}  Ne8 {[%clk 0:01:49]} 17. Bg5 {[%clk 0:01:26]}  Rd7 {[%clk 0:01:44]} 18. c5 {[%clk 0:01:20]}  a6 {[%clk 0:01:20]} 19. Nxd6 {[%clk 0:01:18]}  Bd4+ {[%clk 0:01:20]} 20. Kh1 {[%clk 0:00:59]}  Bxc5 {[%clk 0:01:06]} 21. e5 {[%clk 0:00:28]}  Nxe5 {[%clk 0:00:45]} 22. Nce4 {[%clk 0:00:27]}  Bxd6 {[%clk 0:00:44]} 23. Rxc8 {[%clk 0:00:24]}  Qxc8 {[%clk 0:00:43]} 24. f4 {[%clk 0:00:11]}  Be7 {[%clk 0:00:39]} 25. Qe2 {[%clk 0:00:07]}  Rxd1+ {[%clk 0:00:38]} 26. Qxd1 {[%clk 0:00:08]}  Bxg5 {[%clk 0:00:36]} 27. fxg5 {[%clk 0:00:09]}  Qc6 {[%clk 0:00:35]} 28. Nf6+ {[%clk 0:00:07]}  Nxf6 {[%clk 0:00:34]} 29. gxf6 {[%clk 0:00:08]}  Nd7 {[%clk 0:00:33]} 0-1


[Site "https://www.chess.com"]

[Event "Titled Tuesday Blitz April 25 Early 2023"]
[White "Kravtsiv, Martyn"]
[Black "Santos Flores, Alberto"]
[WhiteFideId "14113147"]
[BlackFideId "3601234"]
[WhiteElo "2695"]
[BlackElo "2235"]
[Result "1-0"]
[Round "01"]
[TimeControl "180+2"]
[Date "2023.04.25"]
[WhiteClock "0:02:25"]
[BlackClock "0:01:43"]

1. e4 {[%clk 0:03:00]}  c5 {[%clk 0:02:59]} 2. Nf3 {[%clk 0:03:00]}  Nc6 {[%clk 0:02:59]} 3. Bb5 {[%clk 0:02:59]}  g6 {[%clk 0:02:56]} 4. O-O {[%clk 0:02:57]}  Bg7 {[%clk 0:02:56]} 5. Bxc6 {[%clk 0:02:56]}  dxc6 {[%clk 0:02:55]} 6. d3 {[%clk 0:02:57]}  Bg4 {[%clk 0:02:55]} 7. Nbd2 {[%clk 0:02:52]}  e5 {[%clk 0:02:54]} 8. a4 {[%clk 0:02:49]}  a5 {[%clk 0:02:53]} 9. Nc4 {[%clk 0:02:47]}  Qc7 {[%clk 0:02:45]} 10. h3 {[%clk 0:02:45]}  Bxf3 {[%clk 0:02:45]} 11. Qxf3 {[%clk 0:02:46]}  Nf6 {[%clk 0:02:43]} 12. Bg5 {[%clk 0:02:39]}  Nd7 {[%clk 0:02:42]} 13. Qg3 {[%clk 0:02:39]}  Nf8 {[%clk 0:02:14]} 14. f4 {[%clk 0:02:30]}  h6 {[%clk 0:02:14]} 15. fxe5 {[%clk 0:02:29]}  hxg5 {[%clk 0:01:51]} 16. Nd6+ {[%clk 0:02:28]}  Kd8 {[%clk 0:01:47]} 17. Rxf7 {[%clk 0:02:28]}  Nd7 {[%clk 0:01:43]} 18. Rxg7 {[%clk 0:02:25]} 1-0


[Site "https://www.chess.com"]

[Event "Titled Tuesday Blitz April 25 Early 2023"]
[White "Akylbek2021"]
[Black "Harsha Bharathakoti"]
[BlackFideId "5078776"]
[WhiteElo "2459"]
[BlackElo "2504"]
[Result "0-1"]
[Round "01"]
[TimeControl "180+2"]
[Date "2023.04.25"]
[WhiteClock "0:00:09"]
[BlackClock "0:00:12"]

1. e4 {[%clk 0:02:57]}  e6 {[%clk 0:02:55]} 2. d4 {[%clk 0:02:57]}  d5 {[%clk 0:02:55]} 3. e5 {[%clk 0:02:57]}  c5 {[%clk 0:02:55]} 4. c3 {[%clk 0:02:58]}  Nc6 {[%clk 0:02:55]} 5. Nf3 {[%clk 0:02:58]}  Bd7 {[%clk 0:02:56]} 6. Bd3 {[%clk 0:02:57]}  Qb6 {[%clk 0:02:55]} 7. O-O {[%clk 0:02:56]}  cxd4 {[%clk 0:02:55]} 8. Re1 {[%clk 0:02:56]}  Nge7 {[%clk 0:02:55]} 9. h4 {[%clk 0:02:56]}  a6 {[%clk 0:02:51]} 10. a3 {[%clk 0:02:56]}  Rc8 {[%clk 0:02:51]} 11. b4 {[%clk 0:02:56]}  dxc3 {[%clk 0:02:49]} 12. Nxc3 {[%clk 0:02:55]}  Nxb4 {[%clk 0:02:49]} 13. Na4 {[%clk 0:02:33]}  Bxa4 {[%clk 0:02:49]} 14. Qxa4+ {[%clk 0:02:33]}  Nbc6 {[%clk 0:02:49]} 15. Rb1 {[%clk 0:02:25]}  Qc7 {[%clk 0:02:49]} 16. Be3 {[%clk 0:02:19]}  Qd7 {[%clk 0:02:33]} 17. Rec1 {[%clk 0:02:14]}  Nf5 {[%clk 0:02:24]} 18. Bxf5 {[%clk 0:01:31]}  exf5 {[%clk 0:02:25]} 19. Nd4 {[%clk 0:01:30]}  Be7 {[%clk 0:02:17]} 20. Nxc6 {[%clk 0:01:24]}  bxc6 {[%clk 0:01:43]} 21. Qxa6 {[%clk 0:01:24]}  O-O {[%clk 0:01:43]} 22. Rb7 {[%clk 0:01:23]}  Qe6 {[%clk 0:01:44]} 23. Rxe7 {[%clk 0:01:04]}  Qxe7 {[%clk 0:01:43]} 24. Bc5 {[%clk 0:01:05]}  Qxh4 {[%clk 0:01:15]} 25. Bxf8 {[%clk 0:01:04]}  Rxf8 {[%clk 0:01:16]} 26. Qxc6 {[%clk 0:01:03]}  Qe4 {[%clk 0:01:13]} 27. Qd6 {[%clk 0:00:54]}  g6 {[%clk 0:00:59]} 28. Rc7 {[%clk 0:00:50]}  Qe1+ {[%clk 0:00:46]} 29. Kh2 {[%clk 0:00:47]}  Qxf2 {[%clk 0:00:47]} 30. Qxd5 {[%clk 0:00:46]}  Qf4+ {[%clk 0:00:41]} 31. g3 {[%clk 0:00:36]}  Qf2+ {[%clk 0:00:40]} 32. Kh3 {[%clk 0:00:37]}  Qf1+ {[%clk 0:00:40]} 33. Kh4 {[%clk 0:00:36]}  h6 {[%clk 0:00:25]} 34. g4 {[%clk 0:00:18]}  g5+ {[%clk 0:00:16]} 35. Kg3 {[%clk 0:00:17]}  Qf4+ {[%clk 0:00:16]} 36. Kg2 {[%clk 0:00:17]}  Qxg4+ {[%clk 0:00:17]} 37. Kh2 {[%clk 0:00:17]}  Qe2+ {[%clk 0:00:16]} 38. Kh3 {[%clk 0:00:15]}  g4+ {[%clk 0:00:15]} 39. Kg3 {[%clk 0:00:14]}  Qe3+ {[%clk 0:00:16]} 40. Kg2 {[%clk 0:00:12]}  f4 {[%clk 0:00:16]} 41. e6 {[%clk 0:00:10]}  Qxe6 {[%clk 0:00:12]} 42. Qd3 {[%clk 0:00:11]}  f3+ {[%clk 0:00:11]} 43. Kf2 {[%clk 0:00:09]}  Qb6+ {[%clk 0:00:12]} 0-1


[Site "https://www.chess.com"]

[Event "Titled Tuesday Blitz April 25 Early 2023"]
[White "Janik, Igor"]
[Black "HamedWafa4"]
[WhiteFideId "1159259"]
[WhiteElo "2484"]
[BlackElo "2459"]
[Result "1-0"]
[Round "01"]
[TimeControl "180+2"]
[Date "2023.04.25"]
[WhiteClock "0:00:53"]
[BlackClock "0:00:09"]

1. Nf3 {[%clk 0:02:46]}  c5 {[%clk 0:02:53]} 2. g3 {[%clk 0:02:47]}  Nc6 {[%clk 0:02:52]} 3. c4 {[%clk 0:02:45]}  g6 {[%clk 0:02:52]} 4. Bg2 {[%clk 0:02:44]}  Bg7 {[%clk 0:02:53]} 5. O-O {[%clk 0:02:44]}  e5 {[%clk 0:02:49]} 6. Nc3 {[%clk 0:02:43]}  Nge7 {[%clk 0:02:47]} 7. d3 {[%clk 0:02:44]}  O-O {[%clk 0:02:46]} 8. Ne1 {[%clk 0:02:44]}  d6 {[%clk 0:02:45]} 9. Nc2 {[%clk 0:02:45]}  Be6 {[%clk 0:02:45]} 10. Rb1 {[%clk 0:02:43]}  Rb8 {[%clk 0:02:43]} 11. b4 {[%clk 0:02:39]}  b6 {[%clk 0:02:38]} 12. b5 {[%clk 0:02:27]}  Nd4 {[%clk 0:02:38]} 13. Ne3 {[%clk 0:02:28]}  Qd7 {[%clk 0:02:36]} 14. Ned5 {[%clk 0:02:28]}  Nxd5 {[%clk 0:02:34]} 15. Nxd5 {[%clk 0:02:27]}  Bh3 {[%clk 0:02:18]} 16. e3 {[%clk 0:02:26]}  Bxg2 {[%clk 0:02:17]} 17. Kxg2 {[%clk 0:02:23]}  Ne6 {[%clk 0:02:17]} 18. Qa4 {[%clk 0:02:17]}  Ra8 {[%clk 0:02:08]} 19. Qa6 {[%clk 0:02:00]}  Rfb8 {[%clk 0:01:49]} 20. Bb2 {[%clk 0:01:54]}  Nc7 {[%clk 0:01:49]} 21. Nxc7 {[%clk 0:01:54]}  Qxc7 {[%clk 0:01:50]} 22. e4 {[%clk 0:01:54]}  Rf8 {[%clk 0:01:49]} 23. Qa4 {[%clk 0:01:48]}  f5 {[%clk 0:01:48]} 24. Qc2 {[%clk 0:01:44]}  f4 {[%clk 0:01:48]} 25. f3 {[%clk 0:01:44]}  h5 {[%clk 0:01:37]} 26. Bc3 {[%clk 0:01:43]}  Bh6 {[%clk 0:01:36]} 27. a4 {[%clk 0:01:42]}  g5 {[%clk 0:01:29]} 28. Qe2 {[%clk 0:01:37]}  Kh7 {[%clk 0:01:24]} 29. Ra1 {[%clk 0:01:34]}  Rg8 {[%clk 0:01:24]} 30. a5 {[%clk 0:01:34]}  Raf8 {[%clk 0:01:17]} 31. axb6 {[%clk 0:01:31]}  axb6 {[%clk 0:01:18]} 32. Ra6 {[%clk 0:01:31]}  g4 {[%clk 0:01:15]} 33. Qa2 {[%clk 0:01:30]}  Rg7 {[%clk 0:01:05]} 34. Ra8 {[%clk 0:01:28]}  Rxa8 {[%clk 0:00:48]} 35. Qxa8 {[%clk 0:01:29]}  h4 {[%clk 0:00:48]} 36. fxg4 {[%clk 0:01:22]}  hxg3 {[%clk 0:00:47]} 37. h3 {[%clk 0:01:16]}  Rf7 {[%clk 0:00:36]} 38. Qe8 {[%clk 0:01:13]}  Re7 {[%clk 0:00:23]} 39. Qh5 {[%clk 0:01:13]}  Rg7 {[%clk 0:00:19]} 40. h4 {[%clk 0:01:10]}  Qf7 {[%clk 0:00:20]} 41. Qxf7 {[%clk 0:01:10]}  Rxf7 {[%clk 0:00:20]} 42. g5 {[%clk 0:01:11]}  Bf8 {[%clk 0:00:20]} 43. Kf3 {[%clk 0:01:07]}  Kg6 {[%clk 0:00:20]} 44. Kg4 {[%clk 0:01:06]}  Rh7 {[%clk 0:00:20]} 45. Rh1 {[%clk 0:01:00]}  Rh5 {[%clk 0:00:20]} 46. Ra1 {[%clk 0:00:57]}  Be7 {[%clk 0:00:16]} 47. Be1 {[%clk 0:00:57]}  Bxg5 {[%clk 0:00:12]} 48. hxg5 {[%clk 0:00:57]}  Rxg5+ {[%clk 0:00:13]} 49. Kf3 {[%clk 0:00:58]}  Rh5 {[%clk 0:00:14]} 50. Ra6 {[%clk 0:00:57]}  Rh1 {[%clk 0:00:14]} 51. Bxg3 {[%clk 0:00:57]}  fxg3 {[%clk 0:00:14]} 52. Rxb6 {[%clk 0:00:54]}  Rf1+ {[%clk 0:00:11]} 53. Kxg3 {[%clk 0:00:54]}  Rf6 {[%clk 0:00:12]} 54. Rc6 {[%clk 0:00:53]}  Kf7 {[%clk 0:00:11]} 55. b6 {[%clk 0:00:53]}  Rg6+ {[%clk 0:00:09]} 56. Kf3 {[%clk 0:00:53]} 1-0


[Site "https://www.chess.com"]

[Event "Titled Tuesday Blitz April 25 Early 2023"]
[White "Dudzinski, Pawel"]
[Black "Kukhmazov, Arsen"]
[WhiteFideId "1117890"]
[BlackFideId "24108260"]
[WhiteElo "2099"]
[BlackElo "2396"]
[Result "0-1"]
[Round "01"]
[TimeControl "180+2"]
[Date "2023.04.25"]
[WhiteClock "0:00:02"]
[BlackClock "0:00:40"]

1. e4 {[%clk 0:03:00]}  e5 {[%clk 0:02:59]} 2. Nf3 {[%clk 0:02:59]}  Nc6 {[%clk 0:03:00]} 3. d4 {[%clk 0:02:58]}  exd4 {[%clk 0:03:00]} 4. Nxd4 {[%clk 0:02:59]}  Nf6 {[%clk 0:03:00]} 5. Nxc6 {[%clk 0:02:58]}  bxc6 {[%clk 0:03:01]} 6. e5 {[%clk 0:02:58]}  Qe7 {[%clk 0:03:02]} 7. Qe2 {[%clk 0:02:59]}  Nd5 {[%clk 0:03:02]} 8. c4 {[%clk 0:03:00]}  Ba6 {[%clk 0:03:03]} 9. b3 {[%clk 0:03:00]}  g6 {[%clk 0:03:02]} 10. f4 {[%clk 0:03:00]}  g5 {[%clk 0:03:02]} 11. fxg5 {[%clk 0:02:43]}  Bg7 {[%clk 0:03:01]} 12. Bb2 {[%clk 0:02:43]}  Qxg5 {[%clk 0:02:53]} 13. Nd2 {[%clk 0:02:24]}  Nf4 {[%clk 0:02:51]} 14. Qe4 {[%clk 0:02:21]}  Ne6 {[%clk 0:02:45]} 15. Nf3 {[%clk 0:02:15]}  Qg6 {[%clk 0:02:45]} 16. Qxg6 {[%clk 0:01:50]}  hxg6 {[%clk 0:02:46]} 17. O-O-O {[%clk 0:01:50]}  c5 {[%clk 0:02:42]} 18. g3 {[%clk 0:01:47]}  Bb7 {[%clk 0:02:42]} 19. Bg2 {[%clk 0:01:47]}  a5 {[%clk 0:02:41]} 20. Ne1 {[%clk 0:01:33]}  Bxg2 {[%clk 0:02:40]} 21. Nxg2 {[%clk 0:01:34]}  a4 {[%clk 0:02:39]} 22. Kc2 {[%clk 0:01:29]}  axb3+ {[%clk 0:02:20]} 23. axb3 {[%clk 0:01:29]}  Ra2 {[%clk 0:02:21]} 24. Ra1 {[%clk 0:01:14]}  Rxb2+ {[%clk 0:02:20]} 25. Kxb2 {[%clk 0:01:10]}  Bxe5+ {[%clk 0:02:21]} 26. Kb1 {[%clk 0:01:10]}  Bxa1 {[%clk 0:02:22]} 27. Kxa1 {[%clk 0:01:11]}  Ke7 {[%clk 0:02:17]} 28. Kb2 {[%clk 0:01:11]}  Nd4 {[%clk 0:02:14]} 29. h4 {[%clk 0:01:08]}  Rb8 {[%clk 0:02:14]} 30. Re1+ {[%clk 0:01:06]}  Kd6 {[%clk 0:02:15]} 31. Re3 {[%clk 0:01:07]}  c6 {[%clk 0:02:10]} 32. Nf4 {[%clk 0:01:03]}  Ne6 {[%clk 0:01:56]} 33. Rd3+ {[%clk 0:00:50]}  Ke7 {[%clk 0:01:56]} 34. Re3 {[%clk 0:00:37]}  d6 {[%clk 0:01:53]} 35. Nxe6 {[%clk 0:00:29]}  fxe6 {[%clk 0:01:54]} 36. Rf3 {[%clk 0:00:29]}  e5 {[%clk 0:01:38]} 37. g4 {[%clk 0:00:28]}  Rh8 {[%clk 0:01:28]} 38. Rh3 {[%clk 0:00:28]}  d5 {[%clk 0:01:23]} 39. Kc3 {[%clk 0:00:20]}  Ke6 {[%clk 0:01:21]} 40. h5 {[%clk 0:00:14]}  gxh5 {[%clk 0:01:21]} 41. gxh5 {[%clk 0:00:15]}  Rh6 {[%clk 0:01:21]} 42. b4 {[%clk 0:00:12]}  d4+ {[%clk 0:01:21]} 43. Kb3 {[%clk 0:00:12]}  cxb4 {[%clk 0:01:17]} 44. Kxb4 {[%clk 0:00:13]}  Kd6 {[%clk 0:01:18]} 45. Rg3 {[%clk 0:00:10]}  e4 {[%clk 0:01:16]} 46. c5+ {[%clk 0:00:08]}  Ke6 {[%clk 0:01:14]} 47. Kc4 {[%clk 0:00:08]}  d3 {[%clk 0:01:12]} 48. Kd4 {[%clk 0:00:07]}  Kf5 {[%clk 0:01:12]} 49. Rg2 {[%clk 0:00:07]}  Kf4 {[%clk 0:00:43]} 50. Rf2+ {[%clk 0:00:06]}  Kg3 {[%clk 0:00:44]} 51. Ke3 {[%clk 0:00:07]}  Rxh5 {[%clk 0:00:44]} 52. Rf6 {[%clk 0:00:05]}  Rxc5 {[%clk 0:00:43]} 53. Rg6+ {[%clk 0:00:06]}  Kh4 {[%clk 0:00:43]} 54. Rd6 {[%clk 0:00:06]}  Rd5 {[%clk 0:00:41]} 55. Re6 {[%clk 0:00:04]}  d2 {[%clk 0:00:41]} 56. Rxe4+ {[%clk 0:00:04]}  Kg5 {[%clk 0:00:41]} 57. Re5+ {[%clk 0:00:02]}  Rxe5+ {[%clk 0:00:40]} 0-1


[Site "https://www.chess.com"]